Cogmind - Beta 11.1 @@@ ROGUE MODE // 2022.04.25 @ 19:14:44 Player: Togure Result: Self-destructed Performance ------------- Evolutions (1) 500 Regions Visited (3) 600 Robots Destroyed (22) 110 Value Destroyed (601) 601 Prototype IDs (0) 0 Alien Tech Used (0) 0 Bonus (14) 14 TOTAL SCORE: 1825 Bonus ------- Follower Combat Kills 14 Cogmind --------- Core Integrity 184/400 Matter 154/300 Energy 57/250 System Corruption 0% Temperature Cool (39) Movement Treading (160) Location -9/Materials Parts ------- > --- POWER (1) -------- Ion Engine > --- PROPULSION (4) --- Light Treads Light Treads > --- UTILITY (2) ------ Medium Storage Unit Sensor Array > --- WEAPON (2) ------- Mining Laser > --- INVENTORY (10) --- Heat Sink Large Storage Unit Visual Processing Unit Datajack Peak State ------------ > --- POWER ------------ Ion Engine > --- PROPULSION ------- Aluminum Leg Aluminum Leg > --- UTILITY ---------- Medium Storage Unit Signal Interpreter > --- WEAPON ----------- Particle Gun Rocket Launcher > --- INVENTORY -------- Ion Engine Light Treads Light Treads Heat Sink Large Storage Unit Visual Processing Unit Sensor Array Small Laser Datajack Mining Laser [Rating: 10] Favorites ----------- Power Ion Engine Engine Ion Engine Propulsion Aluminum Leg Treads Light Treads Leg Aluminum Leg Utility Medium Storage Unit Device Sensor Array Storage Medium Storage Unit Processor Signal Interpreter Weapon Particle Gun Energy Gun Particle Gun Launcher Rocket Launcher Special Weapon Mining Laser Special Melee Weapon Datajack Build | -11 -10 -10 -9 ------- Run | Scr Mat Min Mat Slots Evolved 2 | . . . 2 Power . | . . . . Propulsion 2 | . . . 2 Utility . | . . . . Weapon . | . . . . Parts Attached 35 | 6 19 4 6 Power 4 | 1 2 . 1 Engine 4 | 1 2 . 1 Core . | . . . . Reactor . | . . . . Propulsion 12 | 2 5 3 2 Treads 4 | . 2 . 2 Leg 8 | 2 3 3 . Wheel . | . . . . Hover . | . . . . Flight . | . . . . Utility 6 | 1 4 . 1 Device 3 | . 2 . 1 Storage 2 | 1 1 . . Processor 1 | . 1 . . Hackware . | . . . . Protection . | . . . . Artifact . | . . . . Weapon 13 | 2 8 1 2 Energy Gun 8 | 2 5 . 1 Energy Cannon . | . . . . Ballistic Gun . | . . . . Ballistic Cannon . | . . . . Launcher 1 | . . 1 . Special Weapon 1 | . . . 1 Impact Weapon . | . . . . Slashing Weapon . | . . . . Piercing Weapon . | . . . . Special Melee Weapon 3 | . 3 . . Unidentified Prototypes . | . . . . Parts Lost 8 | . 1 1 6 Power 1 | . . . 1 Propulsion 2 | . . . 2 Utility 1 | . . . 1 Weapon 4 | . 1 1 2 Highest Loss Streak 6 | . 1 1 6 To Critical Strikes . | . . . . Average Slot Usage (%) 95 | . 97 99 60 Engine 13 | . 14 14 8 Treads 3 | . 6 . 3 Leg 23 | . 21 27 14 Device 2 | . 6 . 1 Storage 13 | . 14 14 11 Processor 10 | . 5 14 7 Energy Gun 18 | . 24 17 5 Launcher 6 | . . 10 6 Special Melee Weapon 1 | . 2 . . Naked Turns . | . . . . Heaviest Build 22 | 13 20 22 20 Greatest Support 40 | 20 40 40 40 Greatest Overweight (x) 3 | . . 1 3 Average Overweight (x) . | . . . . Largest Inventory Capacity 10 | 8 10 10 10 Average Capacity 9 | 7 8 10 10 Most Carried 10 | 4 10 10 10 Average Carried 7 | 3 8 9 8 Final Capacity 10 | 8 10 10 10 Final Carried 10 | 4 10 10 4 Class Distribution -------------------- 50% | Mutant 49% | Scavenger-Mutant Dominant Class ---------------- Mutant | -10/Materials Scavenger-Mutant | -10/Mines Mutant | -9/Materials Resources | -11 -10 -10 -9 ----------- Run | Scr Mat Min Mat Matter Collected 556 | 200 250 106 . Remotely . | . . . . Salvage Created 524 | . 390 125 9 Parts 33 | . 23 10 . Haulers Intercepted . | . . . . Recyclers Shooed . | . . . . Parts Field Recycled . | . . . . Retrieved Matter . | . . . . Parts Self-Destructed . | . . . . Prevented . | . . . . Kills | -11 -10 -10 -9 ------- Run | Scr Mat Min Mat Combat Hostiles Destroyed 19 | . 11 6 2 Guns 12 | . 11 1 . Cannons 1 | . . . 1 AOE 6 | . . 5 1 Classes Destroyed 6 | . 3 2 1 Worker 1 | . . 1 . Recycler 1 | . . 1 . Watcher 1 | . 1 . . Swarmer 7 | . 3 4 . Grunt 11 | . 8 2 1 Sentry 1 | . . . 1 Best Kill Streak 3 | . 3 3 1 Combat Bots Only 3 | . 3 3 1 Max Kills in Single Turn 3 | . 1 3 1 Gunslinging . | . . . . Exploded 3 | . . 3 1 Melee . | . . . . Uniques/NPCs Destroyed . | . . . . Combat | -11 -10 -10 -9 -------- Run | Scr Mat Min Mat Damage Taken 1390 | . 538 279 573 Core 456 | . 180 60 216 Absorbed by Shields . | . . . . Core Remaining (%) 52 | 100 . 4 . Volleys Fired 77 | . 48 13 16 Largest 2 | . 2 2 1 Hottest 115 | . 115 105 100 Shots Fired 114 | . 81 17 16 Gun 92 | . 81 8 3 Cannon . | . . . . Launcher 17 | . . 9 8 Special 5 | . . . 5 Kinetic . | . . . . Thermal 97 | . 81 8 8 Explosive 17 | . . 9 8 Electromagnetic . | . . . . Robot Hit Streak 8 | . 8 2 7 Robot Miss Streak 9 | . 9 4 4 Penetration Max . | . . . . Secondary Targets 1 | . 1 . . Max Gunslinging Chain 1 | . 1 . . Shots Hit Robots 71 | . 57 5 9 Core Hits 37 | . 20 11 6 Critical Kills . | . . . . Critical Parts Destroyed . | . . . . Critical Strikes 3 | . 3 . . Burn 3 | . 3 . . Melee Attacks 10 | . 10 . . Impact . | . . . . Slashing . | . . . . Piercing . | . . . . Sneak Attacks 5 | . 5 . . Combat Hostiles . | . . . . Follow-up Attacks . | . . . . Damage Inflicted 1397 | . 652 541 204 Guns 698 | . 652 46 . Cannons . | . . . . Explosions 651 | . . 495 156 Melee . | . . . . Ramming . | . . . . Kinetic . | . . . . Thermal 746 | . 652 46 48 Explosive 651 | . . 495 156 Electromagnetic . | . . . . Impact . | . . . . Slashing . | . . . . Piercing . | . . . . Highest Corruption . | . . . . Average Corruption . | . . . . Corruption Purged . | . . . . Corruption Blocked . | . . . . Overload Shots . | . . . . Overflow Damage 2 | . . 2 . Projectiles . | . . . . Explosions 2 | . . 2 . Melee . | . . . . Knockbacks . | . . . . Impact . | . . . . Kinetic . | . . . . Secondary . | . . . . Self-Inflicted Damage 44 | . . 44 . Shots 1 | . . 1 . Rammed . | . . . . Targets Rammed . | . . . . Kicked . | . . . . Crushed . | . . . . Highest Temperature 367 | . 367 135 66 Average Temperature 104 | . 122 43 26 Received Heat Transfer 630 | . 270 99 261 Effects 2 | . 2 . . Shutdowns 1 | . 1 . . Damage (minor) 1 | . 1 . . Siege Activations . | . . . . Robots Corrupted . | . . . . Combat Hostiles . | . . . . Parts Fried . | . . . . Impact Corruptions . | . . . . Robots Melted . | . . . . Combat Hostiles . | . . . . Parts Melted 5 | . 5 . . Heat Transferred 2114 | . 1903 111 100 Parts Sabotaged . | . . . . Parts Stolen . | . . . . Parts Stripped . | . . . . Power Chain Reactions . | . . . . Missiles Intercepted . | . . . . Alert | -11 -10 -10 -9 ------- Run | Scr Mat Min Mat Peak Influence 257 | . 257 233 176 Initial 70 | . . 70 68 Average 98 | . 110 137 117 Maximum Alert Level 1 | . 1 1 . Low Security (%) 83 | 100 85 70 100 Level 1 16 | . 14 29 . Level 2 . | . . . . Level 3 . | . . . . Level 4 . | . . . . Level 5 . | . . . . High Security . | . . . . Max Security . | . . . . Squads Dispatched 3 | . 2 . 1 Investigation . | . . . . Extermination . | . . . . Reinforcement 3 | . 2 . 1 Assault . | . . . . Garrison . | . . . . Intercept . | . . . . Searches Triggered . | . . . . Construction Impeded . | . . . . Haulers Reinforced . | . . . . Active Scanning Responses . | . . . . Cargo Convoy Interrupts . | . . . . Stealth | -11 -10 -10 -9 --------- Run | Scr Mat Min Mat Distress Signals 1 | . 1 . . Communications Jammed . | . . . . Distress Signals . | . . . . Times Spotted 32 | . 20 8 4 Peak Tracking Total 5 | . 5 3 3 Tactical Retreats 1 | . 1 . . Traps | -11 -10 -10 -9 ------- Run | Scr Mat Min Mat Traps Triggered . | . . . . Indirectly . | . . . . Trap Hack Attempts . | . . . . Triggered . | . . . . Disarmed . | . . . . Reprogrammed . | . . . . Reused . | . . . . Traps Extracted . | . . . . Installed . | . . . . Triggered . | . . . . Machines | -11 -10 -10 -9 ---------- Run | Scr Mat Min Mat Machines Disabled 5 | . 1 4 . Max in Single Turn 2 | . 1 2 . Machines Sabotaged . | . . . . Garrisons Compromised . | . . . . Overloaded Fab Kills . | . . . . Hacking | -11 -10 -10 -9 --------- Run | Scr Mat Min Mat Machines Accessed 1 | . 1 . . Terminals 1 | . 1 . . Fabricators . | . . . . Repair Stations . | . . . . Recycling Units . | . . . . Scanalyzers . | . . . . Garrison Access . | . . . . Total Hacks 2 | . 2 . . Successful 1 | . 1 . . Failed 1 | . 1 . . Catastrophic . | . . . . Database Lockouts . | . . . . Manual 2 | . 2 . . Terminals 2 | . 2 . . Fabricators . | . . . . Repair Stations . | . . . . Recycling Units . | . . . . Scanalyzers . | . . . . Garrison Access . | . . . . Terminal Hacks . | . . . . Fabricator Hacks . | . . . . Repair Station Hacks . | . . . . Recycling Unit Hacks . | . . . . Scanalyzer . | . . . . Garrison Access Hacks . | . . . . Unauthorized Hacks 1 | . 1 . . Terminals 1 | . 1 . . Botnet 1 | . 1 . . Fabricators . | . . . . Repair Stations . | . . . . Recycling Units . | . . . . Scanalyzers . | . . . . Garrison Access . | . . . . Data Cores Recovered . | . . . . Used . | . . . . Hacking Detections 1 | . 1 . . Full Trace Events . | . . . . Feedback Events . | . . . . Feedback Blocked . | . . . . Robot Schematics Acquired . | . . . . Robots Built . | . . . . Authchips . | . . . . Time . | . . . . Total Robot Build Rating . | . . . . Part Schematics Acquired . | . . . . Parts Built . | . . . . Authchips . | . . . . Time . | . . . . Total Part Build Rating . | . . . . Parts Repaired . | . . . . Time . | . . . . Parts Recycled . | . . . . Recycled Matter . | . . . . Retrieved Matter . | . . . . Retrieved Components . | . . . . Parts Scanalyzed . | . . . . Part Schematics Acquired . | . . . . Parts Damaged . | . . . . Bothacking | -11 -10 -10 -9 ------------ Run | Scr Mat Min Mat Used RIF Installer . | . . . . Robots Hacked 6 | . 6 . . Non-combat 4 | . 4 . . Combat 2 | . 2 . . Robot Hacks Applied 8 | . 8 . . parse_system 5 | . 5 . . no_distress 2 | . 2 . . find_station 1 | . 1 . . Relay Couplers Released . | . . . . Fabnet Peak Effective % . | . . . . Robots Rewired . | . . . . Allies Hacked . | . . . . Hacks Repelled . | . . . . Allies | -11 -10 -10 -9 -------- Run | Scr Mat Min Mat Total Allies 1 | . . 1 . Largest Group 1 | . . 1 . Highest-Rated Group 31 | . . 31 . Highest-Rated Ally 31 | . . 31 . Total Orders . | . . . . Ally Attacks 7 | . . 7 . Total Damage 106 | . . 106 . Kills 2 | . . 2 . Allies Corrupted . | . . . . Allies Melted . | . . . . Intel | -11 -10 -10 -9 ------- Run | Scr Mat Min Mat Robot Analysis Total . | . . . . Derelict Logs Recovered 2 | . . 2 . Drone Launches . | . . . . Drone Recoveries . | . . . . Exploration | -11 -10 -10 -9 ------------- Run | Scr Mat Min Mat Turns Passed 2372 | 517 698 976 181 Spaces Moved 1201 | 190 374 544 93 Core 14 | 2 . . 12 Treads 79 | . 68 9 2 Legs 1108 | 188 306 535 79 Wheels . | . . . . Hover . | . . . . Flight . | . . . . Fastest Speed 50 | 50 120 120 120 Average Speed 143 | 119 127 165 132 Slowest Speed 200 | 120 160 190 200 Overloaded Moves . | . . . . Propulsion Burnouts . | . . . . Robots Hopped . | . . . . Cave-ins Triggered . | . . . . Exploration Rate (%) 40 | 14 40 96 10 Regions Visited 3 Branch Regions 1 Pre-discovered Areas . | . . . . Known Exits Taken 2 | . 1 1 . Unknown Exits Taken 1 | 1 . . . Scrap Searched 1 | . . 1 . Spaces Dug . | . . . . Terrain Destroyed 77 | . . 60 17 Melee . | . . . . Projectile 2 | . . . 2 AOE 75 | . . 60 15 Terrain Rammed . | . . . . Walls Destroyed . | . . . . Machines Disabled . | . . . . Actions | -11 -10 -10 -9 --------- Run | Scr Mat Min Mat Total 1709 | 477 507 601 124 Wait 366 | 278 42 37 9 Move 1198 | 189 373 543 93 Hop . | . . . . Pick Up 14 | 4 8 2 . Fast Attach 7 | 6 1 . . Attach 7 | . 1 . 6 Detach . | . . . . Swap 21 | . 17 4 . Drop 9 | . 7 2 . Fire 77 | . 48 13 16 Melee 10 | . 10 . . Ram . | . . . . Kick . | . . . . Crush . | . . . . Escape Stasis . | . . . . Rewire . | . . . . Trap . | . . . . Miscellaneous . | . . . . Route ------- -11/Scrapyard -10/Materials (discovered 2 exits: *Mat / *Min) -10/Mines (discovered 2 exits: *Mat x2) -9/Materials History --------- Turn | Location | Event 20 | -11/Scrapyard | Discovered new exit (range 16) 518 | -11/Scrapyard | Entered Materials 519 | -10/Materials | Build established: Mutant 610 | -10/Materials | Discovered new exit (range 13) 802 | -10/Materials | Core integrity fell below 50% 861 | -10/Materials | Discovered new exit (range 15) 953 | -10/Materials | Identified exit to Materials 1215 | -10/Materials | Identified exit to Mines 1216 | -10/Materials | Entered Mines 1329 | -10/Mines | Learned Materials emergency access door positions 1332 | -10/Mines | Received a Mining Laser from a helpful Derelict 1428 | -10/Mines | Discovered exit to Materials (range 5) 1449 | -10/Mines | Learned Materials terminal intel 1457 | -10/Mines | Received a Rocket Launcher from a helpful Derelict 1530 | -10/Mines | Build established: Scavenger-Mutant 1727 | -10/Mines | Core integrity fell below 20% 2099 | -10/Mines | Discovered exit to Materials (range 7) 2192 | -10/Mines | Entered Materials 2192 | -9/Materials | Evolved 2 slots: Propulsion x2 2194 | -9/Materials | Loaded intel: 12 terminal locations 2350 | -9/Materials | Lost 6 parts (1p2n1u2w) 2360 | -9/Materials | Core integrity fell below 50% 2373 | -9/Materials | Self-destructed Last Messages --------------- 02273_ U-05 Engineer builds a Wall. 02278_ U-05 Engineer lays Concrete. 02279_ The unstable cave ceiling collapses. 02279_ U-05 Engineer lays Concrete. 02285_ U-05 Engineer builds a Wall. 02286_ The unstable cave ceiling collapses. 02289_ U-05 Engineer builds a Wall. 02302_ Rocket Launcher destroyed. 02304_ Aluminum Leg destroyed. 02305_ Ion Engine destroyed. 02306_ U-05 Engineer lays Concrete. 02308_ U-05 Engineer builds a Door. 02310_ Sml. Laser destroyed. 02312_ U-05 Engineer lays Concrete. 02313_ U-05 Engineer builds a Wall. 02314_ Signal Interpreter destroyed. 02317_ U-05 Engineer lays Concrete. 02319_ Aluminum Leg destroyed. 02342_ K-01 Serf collects debris. 02369_ G-34 Mercenary destroyed. Map ----- +----------------------------------------------------+ | ?????????????????????????????????????????????????? | | ?????????????????????????????????????????????????? | | ?????????????????????????????????????????????????? | | ?????????????????????????????????????????????????? | | ?????????????????????????????????????????????????? | | ?????????????????????????????????????????????????? | | ?????????????????????????????????????????????????? | | ?????????????????????????????????????????????????? | | ?????????????????????????????????????????????????? | | ?????????????????????????????????????????????????? | | ?????????????????????????????????????????????????? | | ?????????????????????????????????????????????????? | | ?????????????????????????????????????????????????? | | ?????????????????????????????????????????????????? | | ?????????????????????????????????????????????????? | | ????????????????????##???????????????????????????? | | ???????????????????? ???????????????????????????? | | ????????????????????# ???????????????????????????? | | ????????????????????# ??###########??????????????? | | ????????????????????# #?# ???????????????? | | ????????????????????# #?# ???????????????? | | ????????????????????# ### ???????????????? | | ???????????????###### ; """ ""?????????????????? | | ???????????????+ / """ """????????????????? | | ????????????????##### g%""" """ #??????????????? | | ????????????????????# #@ #??????????????? | | ????????????????????# #! + ?????????????? | | ???????????###+###??# ############?????????????? | | ???????????# #### #????????????????????????? | | "??????????# #????????????????????????? | | "??????????# #????????????????????????? | | ""?????????# #????????????????????????? | | ?????????# ########????????????????????????? | | ????????## ##???????????????????????????????? | | ? ?????????# #????????????????????????????????? | | ?# ????????# #????????????????????????????????? | | ?# ????????# ######????##########?????????????? | | ?# ??????## # # ###### #?????????????? | | ## ##????## # # #?????????????? | | # ####### # # #?????????????? | | # # # #?????????????? | | # / #""" #?????????????? | | # # #""" #?????????????? | | #! ###### #""" #?????????????? | | #######????# #""" #?????????????? | | ???????????## # #?????????????? | | ????????????# ####+#########+#####?????????????? | | ????????????# #??????????????? | | ????????????# #??????????????? | | ????????????# #??????????????? | +----------------------------------------------------+ Best States ------------- Heat Dissipation 35 Energy Generation 10 Energy Capacity 250 Matter Stores 300 Matter Capacity 300 Sight Range 16 Robot Scan Range 14 Terrain Scan Density 10 Evasion (%) 55 Recoil Reduction 2 Item Schematics ----------------- None Robot Schematics ------------------ None Fabricated ------------ Nothing Alien Tech Used ----------------- None Achievements -------------- None Challenges ------------ None Game ------ Seed TractorDefenseRedirector Manual? 0 Play Time 00:31:10 Cumulative 25.1 hours Start 2022.04.25 @ 01:35:54 End 2022.04.25 @ 19:14:44 Sessions 4 Manual Loads 0 Difficulty Rogue Special Mode None Game No. 44 Rogue 44 Adventurer 0 Explorer 0 Win Type - Total 0 Types 0/0/0/0/0/0/0/0/0 Lore% 23 Gallery% 18 Achievement% 19 Wizard Run 0 Options --------- ASCII 0 Keyboard 0 Movement Mouse Keybinds 0 Fullscreen 1 Font 24/Smallcaps Map View 76x50 Tactical HUD 1 Map Filters NONE Filters NONE Steam 1 RUN: 943b5979-3294-424b-859c-314d1217545c